{"text_format":"3","workbook":"xlsx","n_sheets":3,"sheets":["Devoirs","Affichage mensuel","Affichage hebdomadaire"],"not_rendered":{"images":4,"defined_names":16},"read":"whole","date_system":"1900"}

{"sheet":"Devoirs","index":0,"n_rows":15,"n_cols":3,"rows_kept":15}
[null,"AFFICHAGE MENSUEL","AFFICHAGE HEBDOMADAIRE"]
[null," ACTIVITÉS"]
[null,"DESCRIPTION","ÉCHÉANCE"]
[null,"Activité 1",{"$f":"TODAY()","v":"2022-12-09"}]
[null,"Mission 2",{"$f":"TODAY()+15","v":"2022-12-24"}]
[null,"Activité 3",{"$f":"TODAY()+30","v":"2023-01-08"}]
[null,"Activité 4",{"$f":"TODAY()+45","v":"2023-01-23"}]
[null,"Activité 5",{"$f":"TODAY()+60","v":"2023-02-07"}]
[null,"Activité 6",{"$f":"TODAY()+75","v":"2023-02-22"}]
[null,"Activité 7",{"$f":"TODAY()+90","v":"2023-03-09"}]
[null,"Activité 8",{"$f":"TODAY()+105","v":"2023-03-24"}]
[null,"Activité 9",{"$f":"TODAY()+115","v":"2023-04-03"}]
[null,"Activité 10",{"$f":"TODAY()+130","v":"2023-04-18"}]
[null,"Activité 11",{"$f":"TODAY()+145","v":"2023-05-03"}]
[null,"Activité 12",{"$f":"TODAY()+160","v":"2023-05-18"}]

{"sheet":"Affichage mensuel","index":1,"n_rows":17,"n_cols":8,"rows_kept":17}
[null,"DEVOIRS","AFFICHAGE HEBDOMADAIRE"]
[null,"Sélectionnez le mois :","Entrez l’année :"]
[null,{"$f":"TEXT(TODAY(),\"mmmm\")","v":"décembre"},{"$f":"YEAR(TODAY())","v":2022}]
[null," AFFICHAGE MENSUEL"]
[null,"LUNDI","MARDI","MERCREDI","JEUDI","VENDREDI","SAMEDI","DIMANCHE"]
[null,{"$f":"IF(WEEKDAY(DATEVALUE(\"1 \"&MoMois&MoAnnée),2)=COLUMN(A$2),1,IF(LEN(A6)>0,A6+1,\"\"))","v":""},"","",1,2,3,4]
[null,{"$f":"IF(LEN(B6)=0,\"\",IF(COUNTIF(Devoirs[ÉCHÉANCE],DATE(MoAnnée,MoMoisNum,B6))>0,\"Échéance du devoir!\",\"\"))","v":""},{"$f":"IF(LEN(C6)=0,\"\",IF(COUNTIF(Devoirs[ÉCHÉANCE],DATE(MoAnnée,MoMoisNum,C6))>0,\"Échéance du devoir!\",\"\"))","v":""},{"$f":"IF(LEN(D6)=0,\"\",IF(COUNTIF(Devoirs[ÉCHÉANCE],DATE(MoAnnée,MoMoisNum,D6))>0,\"Échéance du devoir!\",\"\"))","v":""},{"$f":"IF(LEN(E6)=0,\"\",IF(COUNTIF(Devoirs[ÉCHÉANCE],DATE(MoAnnée,MoMoisNum,E6))>0,\"Échéance du devoir!\",\"\"))","v":""},{"$f":"IF(LEN(F6)=0,\"\",IF(COUNTIF(Devoirs[ÉCHÉANCE],DATE(MoAnnée,MoMoisNum,F6))>0,\"Échéance du devoir!\",\"\"))","v":""},{"$f":"IF(LEN(G6)=0,\"\",IF(COUNTIF(Devoirs[ÉCHÉANCE],DATE(MoAnnée,MoMoisNum,G6))>0,\"Échéance du devoir!\",\"\"))","v":""},{"$f":"IF(LEN(H6)=0,\"\",IF(COUNTIF(Devoirs[ÉCHÉANCE],DATE(MoAnnée,MoMoisNum,H6))>0,\"Échéance du devoir!\",\"\"))","v":""}]
[null,{"$f":"IF(LEN(H6)>0,IF(H6=DAY(DATE(MoAnnée,MoMoisNum+1,0)),\"\",H6+1),\"\")","v":5},{"$f":"IF(LEN(B8)>0,IF(B8=DAY(DATE(MoAnnée,MoMoisNum+1,0)),\"\",B8+1),\"\")","v":6},7,8,9,10,11]
[null,{"$f":"IF(LEN(B8)=0,\"\",IF(COUNTIF(Devoirs[ÉCHÉANCE],DATE(MoAnnée,MoMoisNum,B8))>0,\"Échéance du devoir!\",\"\"))","v":""},{"$f":"IF(LEN(C8)=0,\"\",IF(COUNTIF(Devoirs[ÉCHÉANCE],DATE(MoAnnée,MoMoisNum,C8))>0,\"Échéance du devoir!\",\"\"))","v":""},{"$f":"IF(LEN(D8)=0,\"\",IF(COUNTIF(Devoirs[ÉCHÉANCE],DATE(MoAnnée,MoMoisNum,D8))>0,\"Échéance du devoir!\",\"\"))","v":""},{"$f":"IF(LEN(E8)=0,\"\",IF(COUNTIF(Devoirs[ÉCHÉANCE],DATE(MoAnnée,MoMoisNum,E8))>0,\"Échéance du devoir!\",\"\"))","v":""},{"$f":"IF(LEN(F8)=0,\"\",IF(COUNTIF(Devoirs[ÉCHÉANCE],DATE(MoAnnée,MoMoisNum,F8))>0,\"Échéance du devoir!\",\"\"))","v":"Échéance du devoir!"},{"$f":"IF(LEN(G8)=0,\"\",IF(COUNTIF(Devoirs[ÉCHÉANCE],DATE(MoAnnée,MoMoisNum,G8))>0,\"Échéance du devoir!\",\"\"))","v":""},{"$f":"IF(LEN(H8)=0,\"\",IF(COUNTIF(Devoirs[ÉCHÉANCE],DATE(MoAnnée,MoMoisNum,H8))>0,\"Échéance du devoir!\",\"\"))","v":""}]
[null,{"$f":"IF(LEN(H8)>0,IF(H8=DAY(DATE(MoAnnée,MoMoisNum+1,0)),\"\",H8+1),\"\")","v":12},{"$f":"IF(LEN(B10)>0,IF(B10=DAY(DATE(MoAnnée,MoMoisNum+1,0)),\"\",B10+1),\"\")","v":13},14,15,16,17,18]
[null,{"$f":"IF(LEN(B10)=0,\"\",IF(COUNTIF(Devoirs[ÉCHÉANCE],DATE(MoAnnée,MoMoisNum,B10))>0,\"Échéance du devoir!\",\"\"))","v":""},{"$f":"IF(LEN(C10)=0,\"\",IF(COUNTIF(Devoirs[ÉCHÉANCE],DATE(MoAnnée,MoMoisNum,C10))>0,\"Échéance du devoir!\",\"\"))","v":""},{"$f":"IF(LEN(D10)=0,\"\",IF(COUNTIF(Devoirs[ÉCHÉANCE],DATE(MoAnnée,MoMoisNum,D10))>0,\"Échéance du devoir!\",\"\"))","v":""},{"$f":"IF(LEN(E10)=0,\"\",IF(COUNTIF(Devoirs[ÉCHÉANCE],DATE(MoAnnée,MoMoisNum,E10))>0,\"Échéance du devoir!\",\"\"))","v":""},{"$f":"IF(LEN(F10)=0,\"\",IF(COUNTIF(Devoirs[ÉCHÉANCE],DATE(MoAnnée,MoMoisNum,F10))>0,\"Échéance du devoir!\",\"\"))","v":""},{"$f":"IF(LEN(G10)=0,\"\",IF(COUNTIF(Devoirs[ÉCHÉANCE],DATE(MoAnnée,MoMoisNum,G10))>0,\"Échéance du devoir!\",\"\"))","v":""},{"$f":"IF(LEN(H10)=0,\"\",IF(COUNTIF(Devoirs[ÉCHÉANCE],DATE(MoAnnée,MoMoisNum,H10))>0,\"Échéance du devoir!\",\"\"))","v":""}]
[null,{"$f":"IF(LEN(H10)>0,IF(H10=DAY(DATE(MoAnnée,MoMoisNum+1,0)),\"\",H10+1),\"\")","v":19},{"$f":"IF(LEN(B12)>0,IF(B12=DAY(DATE(MoAnnée,MoMoisNum+1,0)),\"\",B12+1),\"\")","v":20},21,22,23,24,25]
[null,{"$f":"IF(LEN(B12)=0,\"\",IF(COUNTIF(Devoirs[ÉCHÉANCE],DATE(MoAnnée,MoMoisNum,B12))>0,\"Échéance du devoir!\",\"\"))","v":""},{"$f":"IF(LEN(C12)=0,\"\",IF(COUNTIF(Devoirs[ÉCHÉANCE],DATE(MoAnnée,MoMoisNum,C12))>0,\"Échéance du devoir!\",\"\"))","v":""},{"$f":"IF(LEN(D12)=0,\"\",IF(COUNTIF(Devoirs[ÉCHÉANCE],DATE(MoAnnée,MoMoisNum,D12))>0,\"Échéance du devoir!\",\"\"))","v":""},{"$f":"IF(LEN(E12)=0,\"\",IF(COUNTIF(Devoirs[ÉCHÉANCE],DATE(MoAnnée,MoMoisNum,E12))>0,\"Échéance du devoir!\",\"\"))","v":""},{"$f":"IF(LEN(F12)=0,\"\",IF(COUNTIF(Devoirs[ÉCHÉANCE],DATE(MoAnnée,MoMoisNum,F12))>0,\"Échéance du devoir!\",\"\"))","v":""},{"$f":"IF(LEN(G12)=0,\"\",IF(COUNTIF(Devoirs[ÉCHÉANCE],DATE(MoAnnée,MoMoisNum,G12))>0,\"Échéance du devoir!\",\"\"))","v":"Échéance du devoir!"},{"$f":"IF(LEN(H12)=0,\"\",IF(COUNTIF(Devoirs[ÉCHÉANCE],DATE(MoAnnée,MoMoisNum,H12))>0,\"Échéance du devoir!\",\"\"))","v":""}]
[null,{"$f":"IF(LEN(H12)>0,IF(H12=DAY(DATE(MoAnnée,MoMoisNum+1,0)),\"\",H12+1),\"\")","v":26},{"$f":"IF(LEN(B14)>0,IF(B14=DAY(DATE(MoAnnée,MoMoisNum+1,0)),\"\",B14+1),\"\")","v":27},28,29,30,31,""]
[null,{"$f":"IF(LEN(B14)=0,\"\",IF(COUNTIF(Devoirs[ÉCHÉANCE],DATE(MoAnnée,MoMoisNum,B14))>0,\"Échéance du devoir!\",\"\"))","v":""},{"$f":"IF(LEN(C14)=0,\"\",IF(COUNTIF(Devoirs[ÉCHÉANCE],DATE(MoAnnée,MoMoisNum,C14))>0,\"Échéance du devoir!\",\"\"))","v":""},{"$f":"IF(LEN(D14)=0,\"\",IF(COUNTIF(Devoirs[ÉCHÉANCE],DATE(MoAnnée,MoMoisNum,D14))>0,\"Échéance du devoir!\",\"\"))","v":""},{"$f":"IF(LEN(E14)=0,\"\",IF(COUNTIF(Devoirs[ÉCHÉANCE],DATE(MoAnnée,MoMoisNum,E14))>0,\"Échéance du devoir!\",\"\"))","v":""},{"$f":"IF(LEN(F14)=0,\"\",IF(COUNTIF(Devoirs[ÉCHÉANCE],DATE(MoAnnée,MoMoisNum,F14))>0,\"Échéance du devoir!\",\"\"))","v":""},{"$f":"IF(LEN(G14)=0,\"\",IF(COUNTIF(Devoirs[ÉCHÉANCE],DATE(MoAnnée,MoMoisNum,G14))>0,\"Échéance du devoir!\",\"\"))","v":""},{"$f":"IF(LEN(H14)=0,\"\",IF(COUNTIF(Devoirs[ÉCHÉANCE],DATE(MoAnnée,MoMoisNum,H14))>0,\"Échéance du devoir!\",\"\"))","v":""}]
[null,{"$f":"IF(LEN(H14)>0,IF(H14=DAY(DATE(MoAnnée,MoMoisNum+1,0)),\"\",H14+1),\"\")","v":""},{"$f":"IF(LEN(B16)>0,IF(B16=DAY(DATE(MoAnnée,MoMoisNum+1,0)),\"\",B16+1),\"\")","v":""},"","","","",""]
[null,{"$f":"IF(LEN(B16)=0,\"\",IF(COUNTIF(Devoirs[ÉCHÉANCE],DATE(MoAnnée,MoMoisNum,B16))>0,\"Échéance du devoir!\",\"\"))","v":""},{"$f":"IF(LEN(C16)=0,\"\",IF(COUNTIF(Devoirs[ÉCHÉANCE],DATE(MoAnnée,MoMoisNum,C16))>0,\"Échéance du devoir!\",\"\"))","v":""},{"$f":"IF(LEN(D16)=0,\"\",IF(COUNTIF(Devoirs[ÉCHÉANCE],DATE(MoAnnée,MoMoisNum,D16))>0,\"Échéance du devoir!\",\"\"))","v":""},{"$f":"IF(LEN(E16)=0,\"\",IF(COUNTIF(Devoirs[ÉCHÉANCE],DATE(MoAnnée,MoMoisNum,E16))>0,\"Échéance du devoir!\",\"\"))","v":""},{"$f":"IF(LEN(F16)=0,\"\",IF(COUNTIF(Devoirs[ÉCHÉANCE],DATE(MoAnnée,MoMoisNum,F16))>0,\"Échéance du devoir!\",\"\"))","v":""},{"$f":"IF(LEN(G16)=0,\"\",IF(COUNTIF(Devoirs[ÉCHÉANCE],DATE(MoAnnée,MoMoisNum,G16))>0,\"Échéance du devoir!\",\"\"))","v":""},{"$f":"IF(LEN(H16)=0,\"\",IF(COUNTIF(Devoirs[ÉCHÉANCE],DATE(MoAnnée,MoMoisNum,H16))>0,\"Échéance du devoir!\",\"\"))","v":""}]

{"sheet":"Affichage hebdomadaire","index":2,"n_rows":17,"n_cols":8,"rows_kept":17}
[null,"DEVOIRS","AFFICHAGE MENSUEL"]
[null,"Sélectionnez le mois :","Entrez l’année :","Sélectionnez le numéro de semaine :"]
[null,"Septembre",{"$f":"YEAR(TODAY())","v":2022},"Semaine 1"]
[null," AFFICHAGE HEBDOMADAIRE"]
[null,{"$f":"IF(WEEKDAY(DATEVALUE(\"1 \"&SeMois&SeAnnée),2)=COLUMN(A$2),1,IF(LEN(A5)>0,A5+1,\"\"))","v":""},"","",1,2,3,4]
[null,{"$f":"IF(LEN(H5)>0,IF(H5=DernierJourDuMois_Semaine,\"\",H5+1),\"\")","v":5},{"$f":"IF(LEN(B6)>0,IF(B6=DernierJourDuMois_Semaine,\"\",B6+1),\"\")","v":6},7,8,9,10,11]
[null,{"$f":"IF(LEN(H6)>0,IF(H6=DernierJourDuMois_Semaine,\"\",H6+1),\"\")","v":12},13,14,15,16,17,18]
[null,{"$f":"IF(LEN(H7)>0,IF(H7=DernierJourDuMois_Semaine,\"\",H7+1),\"\")","v":19},20,21,22,23,24,25]
[null,{"$f":"IF(LEN(H8)>0,IF(H8=DernierJourDuMois_Semaine,\"\",H8+1),\"\")","v":26},27,28,29,30,"",""]
[null,{"$f":"IF(LEN(H9)>0,IF(H9=DernierJourDuMois_Semaine,\"\",H9+1),\"\")","v":""},"","","","","",""]
[null,"LUNDI","MARDI","MERCREDI","JEUDI","VENDREDI","SAMEDI","DIMANCHE"]
[null,{"$f":"IF(B14=\"\",IF(AND(ISNUMBER(A12),A12<DernierJourDuMois_Semaine),A12+1,\"\"),IF(B14<=7,\"\",INDEX(SeMoisAffichage,SeSemaine,COLUMN(A$2))-7))","v":""},"","","","","",""]
[null,{"$f":"IF(LEN(B12)=0,\"\",IF(COUNTIF(Devoirs[ÉCHÉANCE],DATE(SeAnnée,SeMoisNum,B12))>0,\"Échéance du devoir!\",\"\"))","v":""},{"$f":"IF(LEN(C12)=0,\"\",IF(COUNTIF(Devoirs[ÉCHÉANCE],DATE(SeAnnée,SeMoisNum,C12))>0,\"Échéance du devoir!\",\"\"))","v":""},{"$f":"IF(LEN(D12)=0,\"\",IF(COUNTIF(Devoirs[ÉCHÉANCE],DATE(SeAnnée,SeMoisNum,D12))>0,\"Échéance du devoir!\",\"\"))","v":""},{"$f":"IF(LEN(E12)=0,\"\",IF(COUNTIF(Devoirs[ÉCHÉANCE],DATE(SeAnnée,SeMoisNum,E12))>0,\"Échéance du devoir!\",\"\"))","v":""},{"$f":"IF(LEN(F12)=0,\"\",IF(COUNTIF(Devoirs[ÉCHÉANCE],DATE(SeAnnée,SeMoisNum,F12))>0,\"Échéance du devoir!\",\"\"))","v":""},{"$f":"IF(LEN(G12)=0,\"\",IF(COUNTIF(Devoirs[ÉCHÉANCE],DATE(SeAnnée,SeMoisNum,G12))>0,\"Échéance du devoir!\",\"\"))","v":""},{"$f":"IF(LEN(H12)=0,\"\",IF(COUNTIF(Devoirs[ÉCHÉANCE],DATE(SeAnnée,SeMoisNum,H12))>0,\"Échéance du devoir!\",\"\"))","v":""}]
[null,{"$f":"INDEX(SeMoisAffichage,SeSemaine,COLUMN(A$2))","v":""},{"$f":"INDEX(SeMoisAffichage,SeSemaine,COLUMN(B$2))","v":""},{"$f":"INDEX(SeMoisAffichage,SeSemaine,COLUMN(C$2))","v":""},{"$f":"INDEX(SeMoisAffichage,SeSemaine,COLUMN(D$2))","v":1},{"$f":"INDEX(SeMoisAffichage,SeSemaine,COLUMN(E$2))","v":2},{"$f":"INDEX(SeMoisAffichage,SeSemaine,COLUMN(F$2))","v":3},{"$f":"INDEX(SeMoisAffichage,SeSemaine,COLUMN(G$2))","v":4}]
[null,{"$f":"IF(LEN(B14)=0,\"\",IF(COUNTIF(Devoirs[ÉCHÉANCE],DATE(SeAnnée,SeMoisNum,B14))>0,\"Échéance du devoir!\",\"\"))","v":""},{"$f":"IF(LEN(C14)=0,\"\",IF(COUNTIF(Devoirs[ÉCHÉANCE],DATE(SeAnnée,SeMoisNum,C14))>0,\"Échéance du devoir!\",\"\"))","v":""},{"$f":"IF(LEN(D14)=0,\"\",IF(COUNTIF(Devoirs[ÉCHÉANCE],DATE(SeAnnée,SeMoisNum,D14))>0,\"Échéance du devoir!\",\"\"))","v":""},{"$f":"IF(LEN(E14)=0,\"\",IF(COUNTIF(Devoirs[ÉCHÉANCE],DATE(SeAnnée,SeMoisNum,E14))>0,\"Échéance du devoir!\",\"\"))","v":""},{"$f":"IF(LEN(F14)=0,\"\",IF(COUNTIF(Devoirs[ÉCHÉANCE],DATE(SeAnnée,SeMoisNum,F14))>0,\"Échéance du devoir!\",\"\"))","v":""},{"$f":"IF(LEN(G14)=0,\"\",IF(COUNTIF(Devoirs[ÉCHÉANCE],DATE(SeAnnée,SeMoisNum,G14))>0,\"Échéance du devoir!\",\"\"))","v":""},{"$f":"IF(LEN(H14)=0,\"\",IF(COUNTIF(Devoirs[ÉCHÉANCE],DATE(SeAnnée,SeMoisNum,H14))>0,\"Échéance du devoir!\",\"\"))","v":""}]
[null,{"$f":"IFERROR(IF(B14=\"\",IF(AND(ISNUMBER(A16),A16<DernierJourDuMois_Semaine),A16+1,$H$14+COLUMN(A$2)),IF(B14+7>DernierJourDuMois_Semaine,\"\",INDEX(SeMoisAffichage,SeSemaine,COLUMN(A$2))+7)),\"\")","v":5},{"$f":"IFERROR(IF(C14=\"\",IF(AND(ISNUMBER(B16),B16<DernierJourDuMois_Semaine),B16+1,$H$14+COLUMN(B$2)),IF(C14+7>DernierJourDuMois_Semaine,\"\",INDEX(SeMoisAffichage,SeSemaine,COLUMN(B$2))+7)),\"\")","v":6},{"$f":"IFERROR(IF(D14=\"\",IF(AND(ISNUMBER(C16),C16<DernierJourDuMois_Semaine),C16+1,$H$14+COLUMN(C$2)),IF(D14+7>DernierJourDuMois_Semaine,\"\",INDEX(SeMoisAffichage,SeSemaine,COLUMN(C$2))+7)),\"\")","v":7},{"$f":"IFERROR(IF(E14=\"\",IF(AND(ISNUMBER(D16),D16<DernierJourDuMois_Semaine),D16+1,$H$14+COLUMN(D$2)),IF(E14+7>DernierJourDuMois_Semaine,\"\",INDEX(SeMoisAffichage,SeSemaine,COLUMN(D$2))+7)),\"\")","v":8},{"$f":"IFERROR(IF(F14=\"\",IF(AND(ISNUMBER(E16),E16<DernierJourDuMois_Semaine),E16+1,$H$14+COLUMN(E$2)),IF(F14+7>DernierJourDuMois_Semaine,\"\",INDEX(SeMoisAffichage,SeSemaine,COLUMN(E$2))+7)),\"\")","v":9},{"$f":"IFERROR(IF(G14=\"\",IF(AND(ISNUMBER(F16),F16<DernierJourDuMois_Semaine),F16+1,$H$14+COLUMN(F$2)),IF(G14+7>DernierJourDuMois_Semaine,\"\",INDEX(SeMoisAffichage,SeSemaine,COLUMN(F$2))+7)),\"\")","v":10},{"$f":"IFERROR(IF(H14=\"\",IF(AND(ISNUMBER(G16),G16<DernierJourDuMois_Semaine),G16+1,$H$14+COLUMN(G$2)),IF(H14+7>DernierJourDuMois_Semaine,\"\",INDEX(SeMoisAffichage,SeSemaine,COLUMN(G$2))+7)),\"\")","v":11}]
[null,{"$f":"IF(LEN(B16)=0,\"\",IF(COUNTIF(Devoirs[ÉCHÉANCE],DATE(SeAnnée,SeMoisNum,B16))>0,\"Échéance du devoir!\",\"\"))","v":""},{"$f":"IF(LEN(C16)=0,\"\",IF(COUNTIF(Devoirs[ÉCHÉANCE],DATE(SeAnnée,SeMoisNum,C16))>0,\"Échéance du devoir!\",\"\"))","v":""},{"$f":"IF(LEN(D16)=0,\"\",IF(COUNTIF(Devoirs[ÉCHÉANCE],DATE(SeAnnée,SeMoisNum,D16))>0,\"Échéance du devoir!\",\"\"))","v":""},{"$f":"IF(LEN(E16)=0,\"\",IF(COUNTIF(Devoirs[ÉCHÉANCE],DATE(SeAnnée,SeMoisNum,E16))>0,\"Échéance du devoir!\",\"\"))","v":""},{"$f":"IF(LEN(F16)=0,\"\",IF(COUNTIF(Devoirs[ÉCHÉANCE],DATE(SeAnnée,SeMoisNum,F16))>0,\"Échéance du devoir!\",\"\"))","v":""},{"$f":"IF(LEN(G16)=0,\"\",IF(COUNTIF(Devoirs[ÉCHÉANCE],DATE(SeAnnée,SeMoisNum,G16))>0,\"Échéance du devoir!\",\"\"))","v":""},{"$f":"IF(LEN(H16)=0,\"\",IF(COUNTIF(Devoirs[ÉCHÉANCE],DATE(SeAnnée,SeMoisNum,H16))>0,\"Échéance du devoir!\",\"\"))","v":""}]